bitfinex/quotes_BTCUSD_20250602
["timestamp","ask_amount","ask_price","bid_price","bid_amount"]
[1748850894554,0.05633042,105390.0,105380.0,0.25637043]
[1748850894722,0.04033042,105390.0,105380.0,0.25637043]
[1748850895695,0.04033042,105390.0,105380.0,0.25637045]
[1748850896044,0.23010174,105390.0,105380.0,0.2373927]
[1748850896221,0.23721304,105390.0,105380.0,0.2373927]
[1748850896426,0.23721304,105390.0,105380.0,0.24688162]
[1748850898752,0.22772502,105390.0,105380.0,0.24688162]
[1748850899458,0.24402502,105390.0,105380.0,0.24688162]
[1748850900084,0.22772502,105390.0,105380.0,0.24688164]
[1748850902086,0.22772502,105390.0,105370.0,4.844e-05]
[1748850902087,0.19927861,105380.0,105370.0,4.844e-05]
[1748850902287,0.21567861,105380.0,105370.0,0.00308476]
[1748850902514,0.23167861,105380.0,105370.0,0.00308476]
[1748850902717,0.57167861,105380.0,105370.0,4.844e-05]
[1748850903331,0.86291861,105380.0,105370.0,4.844e-05]
[1748850905248,0.95877291,105380.0,105370.0,4.844e-05]
[1748850908505,5.08966491,105380.0,105330.0,0.0153]
[1748850908739,0.20884707,105340.0,105330.0,0.02451662]
[1748850908964,0.20884707,105340.0,105330.0,0.01564526]
[1748850910110,0.20884707,105340.0,105330.0,0.01764526]
[1748850910313,0.20884707,105340.0,105330.0,0.01564526]
[1748850910768,0.20884707,105340.0,105330.0,0.01764526]
[1748850910942,0.20884707,105340.0,105330.0,0.01864526]
[1748850913136,0.20884707,105340.0,105330.0,0.02813923]
[1748850914497,0.20884707,105340.0,105330.0,0.03763311]
[1748850914699,0.20884707,105340.0,105330.0,0.02813923]
[1748850914904,0.20884707,105340.0,105330.0,0.23700623]
[1748850915110,0.20884707,105340.0,105330.0,0.24649984]
[1748850915525,0.20884707,105340.0,105330.0,0.25599336]
[1748850917551,0.02847874,105340.0,105330.0,0.25599273]
[1748850917776,0.030856,105340.0,105330.0,0.25599273]
[1748850917980,0.030856,105340.0,105330.0,0.25599282]
[1748850920253,0.02136293,105340.0,105330.0,0.25599282]
[1748850920480,0.44862315,105350.0,105340.0,0.2348395]
[1748850920676,0.74943513,105350.0,105340.0,0.2348395]
[1748850920884,0.75892702,105350.0,105340.0,0.2348395]
[1748850921204,0.76841909,105350.0,105340.0,0.2348395]
[1748850921560,0.76841981,105350.0,105340.0,0.2348395]
[1748850921879,0.76841981,105350.0,105340.0,0.23483968]
[1748850922278,0.34,105350.0,105340.0,0.2443322]
[1748850922482,0.36847477,105350.0,105340.0,0.26892463]
[1748850923907,0.37796675,105350.0,105340.0,0.26892463]
[1748850924315,0.47997004,105350.0,105340.0,0.26892463]
[1748850924544,0.47997085,105350.0,105340.0,0.24044707]
[1748850925169,0.66981422,105350.0,105340.0,0.24044716]
[1748850925384,0.5488276,105350.0,105340.0,0.02599297]
[1748850925710,0.5488276,105350.0,105340.0,0.22534716]
[1748850926522,0.5488276,105350.0,105340.0,0.24124716]
[1748850927351,0.53933553,105350.0,105340.0,0.24124716]
[1748850927573,0.52984337,105350.0,105340.0,0.23175437]
[1748850927780,0.52984337,105350.0,105340.0,0.21585437]
[1748850928293,0.52984337,105350.0,105340.0,0.22534716]
[1748850928507,0.52984337,105350.0,105340.0,0.24174716]
[1748850929404,0.52984337,105350.0,105340.0,0.23225437]
[1748850930393,0.52984337,105350.0,105340.0,0.21585437]
[1748850931424,0.52984337,105350.0,105340.0,0.0165]
[1748850932386,0.52984337,105350.0,105340.0,0.21585428]
[1748850933098,0.52984337,105350.0,105340.0,0.21585447]
[1748850933322,0.52984337,105350.0,105340.0,0.22534744]
[1748850933773,0.52984337,105350.0,105340.0,0.24134744]
[1748850934688,0.52984337,105350.0,105340.0,0.25022497]
[1748850935397,0.52984337,105350.0,105340.0,0.25022547]
[1748850935639,0.52984337,105350.0,105340.0,0.25971826]
[1748850935883,0.52984337,105350.0,105340.0,0.25022547]
[1748850936134,0.34,105350.0,105340.0,0.25022547]
[1748850936386,0.36847513,105350.0,105340.0,0.27224804]
[1748850936646,0.1086218,105360.0,105350.0,0.25061877]
[1748850936933,0.1086218,105360.0,105350.0,0.25000699]
[1748850936934,0.61112622,105360.0,105350.0,0.25000699]
[1748850937200,0.94874896,105360.0,105350.0,0.25304843]
[1748850937697,0.94874896,105360.0,105350.0,0.24416434]
[1748850937896,0.95074896,105360.0,105350.0,0.25304825]
[1748850938662,0.95074896,105360.0,105350.0,0.25304225]
[1748850938878,0.95074896,105360.0,105350.0,0.25304226]
[1748850939058,0.95074896,105360.0,105350.0,0.25000516]
[1748850939291,0.95074896,105360.0,105350.0,0.25000484]
[1748850939493,0.95074896,105360.0,105350.0,0.25000485]
[1748850939922,0.95074896,105360.0,105350.0,0.24112724]
[1748850940122,0.95074896,105360.0,105350.0,0.25000333]
[1748850940345,0.95074896,105360.0,105350.0,0.25000322]
[1748850940562,0.95074896,105360.0,105350.0,0.25000301]
[1748850940917,0.95074896,105360.0,105350.0,0.25000189]
[1748850941180,0.95074896,105360.0,105350.0,0.24112724]
[1748850941392,0.95074896,105360.0,105350.0,0.24051]
[1748850941599,0.95074896,105360.0,105350.0,0.25949387]
[1748850941600,0.94125842,105360.0,105350.0,0.25949387]
[1748850941823,0.94125842,105360.0,105350.0,0.25949393]
[1748850942070,0.93176761,105360.0,105350.0,0.25949393]
[1748850942508,0.93176761,105360.0,105350.0,0.24299393]
[1748850942707,0.93176761,105360.0,105350.0,0.24299417]
[1748850942937,0.93176761,105360.0,105350.0,0.23411931]
[1748850943138,0.93176761,105360.0,105350.0,0.24299376]
[1748850943338,0.92227653,105360.0,105350.0,0.22400989]
[1748850943688,0.92227653,105360.0,105350.0,0.21513544]
[1748850944292,0.92227653,105360.0,105350.0,0.23350196]
[1748850944518,0.92227653,105360.0,105350.0,0.22462742]
[1748850944684,0.92227653,105360.0,105350.0,0.23350236]
[1748850944880,0.92227653,105360.0,105350.0,0.23350253]
[1748850945082,0.92227653,105360.0,105350.0,0.22462742]
[1748850945578,0.92227653,105360.0,105350.0,0.23350247]
[1748850945787,0.92227653,105360.0,105350.0,0.2335025]
[1748850945919,0.92227653,105360.0,105350.0,0.23350262]
[1748850947608,0.92227653,105360.0,105350.0,0.23350319]
[1748850947855,0.92227653,105360.0,105350.0,0.22462742]
[1748850949406,0.91278536,105360.0,105350.0,0.0158]
[1748850949850,0.82314536,105360.0,105350.0,0.0158]
[1748850950068,0.21831931,105350.0,105340.0,0.34873121]
[1748850950292,0.03796765,105350.0,105340.0,0.36710216]
[1748850950702,0.03796765,105350.0,105340.0,0.36710242]
[1748850950911,0.01898315,105350.0,105340.0,0.36710242]
[1748850951132,0.01898315,105350.0,105340.0,0.36710304]
[1748850951349,0.02847495,105350.0,105340.0,0.35822364]
[1748850952004,0.01898315,105350.0,105340.0,0.36710256]
[1748850953264,0.01898315,105350.0,105340.0,0.3671027]
[1748850953686,0.01898315,105350.0,105340.0,0.3647027]
[1748850953908,0.01898315,105350.0,105340.0,0.36470271]
[1748850954330,0.01898315,105350.0,105340.0,0.35582364]
[1748850954560,0.01898315,105350.0,105340.0,0.36470294]
[1748850954777,0.01898315,105350.0,105340.0,0.36470287]
[1748850955204,0.01898315,105350.0,105340.0,0.35582357]
[1748850955418,0.01898315,105350.0,105340.0,0.3647031]
[1748850955821,0.01898315,105350.0,105340.0,0.36470327]
[1748850956030,0.01898315,105350.0,105340.0,0.36470317]
[1748850957307,0.01898315,105350.0,105340.0,0.36470368]
[1748850957759,0.01898315,105350.0,105340.0,0.36470455]
[1748850957965,0.01898315,105350.0,105340.0,0.36470489]
[1748850958627,0.01898315,105350.0,105340.0,0.22518432]
[1748850958628,0.30232335,105350.0,105340.0,0.22518432]
[1748850958829,0.2183185,105350.0,105340.0,0.24355809]
[1748850959271,0.2183185,105350.0,105340.0,0.24355871]
[1748850959480,0.2183185,105350.0,105340.0,0.25305114]
[1748850959481,0.0379672,105350.0,105340.0,0.25305114]
[1748850959742,0.0379672,105350.0,105340.0,0.25305178]
[1748850959743,0.04983662,105350.0,105340.0,0.25305178]
[1748850960161,0.04034446,105350.0,105340.0,0.24416927]
[1748850960384,0.04034446,105350.0,105340.0,0.26965202]
[1748850960583,0.02847513,105350.0,105340.0,0.26965188]
[1748850961205,0.01898315,105350.0,105340.0,0.26965188]
[1748850961554,0.03796702,105350.0,105340.0,0.26965188]
[1748850961765,0.02847504,105350.0,105340.0,0.26965188]
[1748850962013,0.03796702,105350.0,105340.0,0.26965228]
[1748850962410,0.03796702,105350.0,105340.0,0.26076927]
[1748850962615,0.02847504,105350.0,105340.0,0.26965331]
[1748850963082,0.02847504,105350.0,105340.0,0.26965278]
[1748850963706,0.03796702,105350.0,105340.0,0.26965278]
[1748850963911,0.03796702,105350.0,105340.0,0.2696524]
[1748850964130,0.02847504,105350.0,105340.0,0.2696524]
[1748850964331,0.01898315,105350.0,105340.0,0.2696524]
[1748850964741,0.02847513,105350.0,105340.0,0.2696524]
[1748850964995,0.01898315,105350.0,105340.0,0.2696537]
[1748850965199,0.02847504,105350.0,105340.0,0.2696537]
[1748850965417,0.02847504,105350.0,105340.0,0.26965381]
[1748850965624,0.03796702,105350.0,105340.0,0.26965381]
[1748850966035,0.01898315,105350.0,105340.0,0.26965381]
[1748850966250,0.02847504,105350.0,105340.0,0.26965389]
[1748850966659,0.02847504,105350.0,105340.0,0.2696591]
[1748850967256,0.02847504,105350.0,105340.0,0.26076935]
[1748850967706,0.02847504,105350.0,105340.0,0.2696591]
[1748850968131,0.02847504,105350.0,105340.0,0.2696592]
[1748850968337,0.01898315,105350.0,105340.0,0.2696592]
[1748850968590,0.01898315,105350.0,105340.0,0.26965915]
[1748850969007,0.01898315,105350.0,105340.0,0.26076935]
[1748850969221,0.02847504,105350.0,105340.0,0.26076935]
[1748850969421,0.01898315,105350.0,105340.0,0.26965958]
[1748850970046,0.01898315,105350.0,105340.0,0.26965973]
[1748850970474,0.01898315,105350.0,105340.0,0.26965967]
[1748850970719,0.01898315,105350.0,105340.0,0.26965963]
[1748850970943,0.01898315,105350.0,105340.0,0.26965965]
[1748850971618,0.00949144,105350.0,105340.0,0.26965965]
[1748850971833,0.01898306,105350.0,105340.0,0.26965965]
[1748850972213,0.01898306,105350.0,105340.0,0.26076931]
[1748850972411,0.01898306,105350.0,105340.0,0.2696596]
[1748850972891,0.00949144,105350.0,105340.0,0.2696596]
[1748850973102,0.01898297,105350.0,105340.0,0.2696596]
[1748850973926,0.01898297,105350.0,105340.0,0.26965962]
[1748850974361,0.02847459,105350.0,105340.0,0.26965962]
[1748850974546,0.02847459,105350.0,105340.0,0.2696599]
[1748850974781,0.01898297,105350.0,105340.0,0.2696599]
[1748850975282,0.01898297,105350.0,105340.0,0.26965984]
[1748850975500,0.02847477,105350.0,105340.0,0.26965984]
[1748850975700,0.01898297,105350.0,105340.0,0.26965988]
[1748850975909,0.02847477,105350.0,105340.0,0.26965991]
[1748850976113,0.01898297,105350.0,105340.0,0.26965991]
[1748850976332,0.02847477,105350.0,105340.0,0.26965994]
[1748850976961,0.03796657,105350.0,105340.0,0.26965994]
[1748850977367,0.03796657,105350.0,105340.0,0.26965985]
[1748850977646,0.03796648,105350.0,105340.0,0.26965984]
[1748850978799,0.04745846,105350.0,105340.0,0.26965987]
[1748850978976,0.03796648,105350.0,105340.0,0.24416931]
[1748850979181,0.03796648,105350.0,105340.0,0.25306015]
[1748850979380,0.03796648,105350.0,105340.0,0.24416931]
[1748850979579,0.03796648,105350.0,105340.0,0.25306021]
[1748850979805,0.04745846,105350.0,105340.0,0.25306021]
[1748850980013,0.04983572,105350.0,105340.0,0.25306021]
[1748850980234,0.04983563,105350.0,105340.0,0.25306032]
[1748850980407,0.04034374,105350.0,105340.0,0.25306032]
[1748850980786,0.04983563,105350.0,105340.0,0.24416935]
[1748850980980,0.04983563,105350.0,105340.0,0.25306012]
[1748850981668,0.04983563,105350.0,105340.0,0.25305995]
[1748850981892,0.04983617,105350.0,105340.0,0.25305995]
[1748850982148,0.0308523,105350.0,105340.0,0.25305995]
[1748850982353,0.04034428,105350.0,105340.0,0.25305995]
[1748850982559,0.0308523,105350.0,105340.0,0.25305995]
[1748850982796,0.04034419,105350.0,105340.0,0.25305995]
[1748850983889,0.04034419,105350.0,105340.0,0.25305997]
[1748850984594,0.04983617,105350.0,105340.0,0.2530595]
[1748850985674,0.04983617,105350.0,105340.0,0.25305989]
[1748850986344,0.04983617,105350.0,105340.0,0.25306071]
[1748850986582,0.04034464,105350.0,105340.0,0.25306071]
[1748850986804,0.04034464,105350.0,105340.0,0.25306317]
[1748850987289,0.04034464,105350.0,105340.0,0.24416937]
[1748850987516,0.04034464,105350.0,105340.0,0.25306331]
[1748850988404,0.04034464,105350.0,105340.0,0.25306333]
[1748850988636,0.04034464,105350.0,105340.0,0.25306319]
[1748850989338,0.04983671,105350.0,105340.0,0.24416939]
[1748850989577,0.04983671,105350.0,105340.0,0.25306321]
[1748850989828,0.04983716,105350.0,105340.0,0.25306321]
[1748850990998,0.04983716,105350.0,105340.0,0.25306294]
[1748850992433,0.24638873,105350.0,105340.0,0.23736303]
[1748850992671,0.24401147,105350.0,105340.0,0.23736303]
[1748850992903,0.24401147,105350.0,105340.0,0.23432575]
[1748850993136,0.24401147,105350.0,105340.0,0.23736316]
[1748850993609,0.0379681,105350.0,105340.0,0.25306316]
[1748850993862,0.04034536,105350.0,105340.0,0.25306304]
[1748850995254,0.23018873,105350.0,105340.0,0.25306414]
[1748850995487,0.22781147,105350.0,105340.0,0.25306414]
[1748850995695,0.22781147,105350.0,105340.0,0.2441695]
[1748850995896,0.01898387,105350.0,105340.0,0.26255686]
[1748850996103,0.02847594,105350.0,105340.0,0.26255686]
[1748850996311,0.02847594,105350.0,105340.0,0.25366193]
[1748850996517,0.02847594,105350.0,105340.0,0.2625568]
[1748850997147,0.0379681,105350.0,105340.0,0.2625568]
[1748850997355,0.0379681,105350.0,105340.0,0.2595195]
[1748850997491,0.0379681,105350.0,105340.0,0.2625568]
[1748850997692,0.0379681,105350.0,105340.0,0.26255673]
[1748850997900,0.0379681,105350.0,105340.0,0.27805673]
[1748850998132,0.02847549,105350.0,105340.0,0.27805673]
[1748850998805,0.02847549,105350.0,105340.0,0.27805676]
[1748850998945,0.03796756,105350.0,105340.0,0.27805676]
[1748850999371,0.02847549,105350.0,105340.0,0.27805676]
[1748851000249,0.02847549,105350.0,105340.0,0.27805669]
[1748851000806,0.02847549,105350.0,105340.0,0.27805677]
[1748851001577,0.02847549,105350.0,105340.0,0.27805674]
[1748851001998,0.01898351,105350.0,105340.0,0.26916193]
[1748851002205,0.02847549,105350.0,105340.0,0.27805674]
[1748851002421,0.03796675,105350.0,105340.0,0.27805674]
[1748851002634,0.00949135,105350.0,105340.0,0.37391104]
[1748851002852,0.11795243,105360.0,105350.0,0.24961877]
[1748851003103,0.12982086,105360.0,105350.0,0.25851358]
[1748851003317,0.31964622,105360.0,105350.0,0.23312205]
[1748851003523,0.31726896,105360.0,105350.0,0.25210574]
[1748851003731,0.1274436,105360.0,105350.0,0.25210574]
[1748851003947,0.12982086,105360.0,105350.0,0.26159727]
[1748851004180,0.13082086,105360.0,105350.0,0.26159727]
[1748851004418,0.14131212,105360.0,105350.0,0.26159727]
[1748851004645,0.14131212,105360.0,105350.0,0.25210574]
[1748851004811,0.14131212,105360.0,105350.0,0.24321057]
[1748851005034,0.14131212,105360.0,105350.0,0.25210561]
[1748851005243,0.14131212,105360.0,105350.0,0.2527021]
[1748851005605,0.14131212,105360.0,105350.0,0.26159741]
[1748851006466,0.32164694,105360.0,105350.0,0.24261426]
[1748851006666,0.31926968,105360.0,105350.0,0.24261432]
[1748851007454,0.31926968,105360.0,105350.0,0.23371895]
[1748851007666,0.31926968,105360.0,105350.0,0.24261432]
[1748851007851,0.31926968,105360.0,105350.0,0.24261462]
[1748851008071,0.31926968,105360.0,105350.0,0.24261459]
[1748851008276,0.31926968,105360.0,105350.0,0.23371895]
[1748851008484,0.31926968,105360.0,105350.0,0.24261458]
[1748851009069,0.31905285,105360.0,105350.0,0.24261458]
[1748851009289,0.31905285,105360.0,105350.0,0.23371895]
[1748851009532,0.31905285,105360.0,105350.0,0.24261471]
[1748851009737,0.31905285,105360.0,105350.0,0.233123]
[1748851010241,0.30977887,105360.0,105350.0,0.233123]
[1748851010460,0.30977887,105360.0,105350.0,0.23312198]
[1748851010876,0.41103351,105360.0,105350.0,0.24261351]
[1748851011083,0.41103351,105360.0,105350.0,0.23371877]
[1748851011259,0.41103351,105360.0,105350.0,0.23312158]
[1748851011674,0.60085887,105360.0,105350.0,0.23312158]
[1748851011873,0.60085887,105360.0,105350.0,0.22422724]
[1748851012056,0.60085887,105360.0,105350.0,0.23312135]
[1748851012450,0.59136779,105360.0,105350.0,0.23312135]
[1748851013357,0.59136779,105360.0,105350.0,0.23312153]
[1748851013586,0.59136779,105360.0,105350.0,0.24261227]
[1748851013760,0.59136779,105360.0,105350.0,0.24261219]
[1748851014150,0.59136779,105360.0,105350.0,0.23371931]
[1748851014362,0.59136779,105360.0,105350.0,0.24261214]
[1748851014798,0.57238536,105360.0,105350.0,0.21717337]
[1748851015036,0.57238536,105360.0,105350.0,0.02732949]
[1748851015248,0.01898369,105350.0,105340.0,0.24173211]
[1748851015467,0.02136095,105350.0,105340.0,0.25366303]
[1748851015669,0.02136095,105350.0,105340.0,0.25366318]
[1748851015927,0.21120432,105350.0,105340.0,0.22518535]
[1748851016145,0.22532706,105350.0,105340.0,0.22787075]
[1748851016376,0.20882706,105350.0,105340.0,0.25326327]
[1748851016995,0.20882706,105350.0,105340.0,0.24436945]
[1748851017217,0.20882706,105350.0,105340.0,0.25326331]
[1748851020257,0.19933544,105350.0,105340.0,0.22778543]
[1748851020643,0.19933544,105350.0,105340.0,0.22778559]
[1748851021069,0.19933544,105350.0,105340.0,0.21889156]
[1748851021338,0.19933544,105350.0,105340.0,0.23727826]
[1748851022074,0.19933544,105350.0,105340.0,0.21829271]
[1748851022313,0.18984337,105350.0,105340.0,0.02893038]
[1748851022523,0.18984337,105350.0,105340.0,0.04731734]
[1748851022743,0.18984337,105350.0,105340.0,0.23717874]
[1748851022943,0.18984337,105350.0,105340.0,0.23717866]
[1748851023766,0.18984337,105350.0,105340.0,0.23717864]
[1748851023991,0.18984337,105350.0,105340.0,0.24667152]
[1748851024274,0.18984337,105350.0,105340.0,0.25616431]
[1748851024474,0.18744337,105350.0,105340.0,0.25616431]
[1748851024614,0.18982063,105350.0,105340.0,0.25616429]
[1748851025544,0.18982063,105350.0,105340.0,0.25616426]
[1748851026392,0.18982063,105350.0,105340.0,0.24667148]
[1748851026694,0.18982063,105350.0,105340.0,0.23777764]
[1748851026915,0.18982063,105350.0,105340.0,0.24667138]
[1748851027936,0.18982063,105350.0,105340.0,0.2466711]
[1748851029028,0.18982063,105350.0,105340.0,0.23777764]
[1748851029163,0.18982063,105350.0,105340.0,0.24667103]
[1748851029851,0.18982063,105350.0,105340.0,0.25616382]
[1748851030448,0.18982063,105350.0,105340.0,0.25616359]
[1748851030786,0.18982063,105350.0,105340.0,0.25312621]
[1748851030994,0.18982063,105350.0,105340.0,0.25616353]
[1748851031180,0.01186924,105350.0,105340.0,0.26565577]
[1748851031391,0.04034518,105350.0,105340.0,0.26565532]
[1748851032022,0.04034518,105350.0,105340.0,0.26565521]
[1748851032672,0.04034518,105350.0,105340.0,0.26565515]
[1748851032878,0.04034518,105350.0,105340.0,0.2656547]
[1748851033459,0.04034518,105350.0,105340.0,0.26565461]
[1748851034074,0.04034518,105350.0,105340.0,0.26565458]
[1748851034591,0.02136095,105350.0,105340.0,0.26565458]
[1748851035394,0.02136095,105350.0,105340.0,0.28075458]
[1748851035596,0.02136041,105350.0,105340.0,0.28075507]
[1748851035926,0.03085239,105350.0,105340.0,0.28075507]
[1748851036190,0.03498171,105360.0,105350.0,0.21831877]
[1748851036403,0.03498171,105360.0,105350.0,0.24271207]
[1748851036404,0.12740414,105360.0,105350.0,0.24271207]
[1748851036619,0.03796414,105360.0,105350.0,0.24271207]
[1748851036835,0.12740414,105360.0,105350.0,0.24271207]
[1748851037041,0.12740414,105360.0,105350.0,0.24574923]
[1748851037223,0.13689504,105360.0,105350.0,0.24270931]
[1748851037919,0.13889504,105360.0,105350.0,0.24270931]
[1748851038133,0.13889504,105360.0,105350.0,0.24270928]
[1748851038348,0.32160703,105360.0,105350.0,0.23321774]
[1748851038560,0.31922977,105360.0,105350.0,0.23321775]
[1748851038770,0.30973887,105360.0,105350.0,0.23321775]
[1748851038949,0.30973887,105360.0,105350.0,0.23321736]
[1748851039607,0.30973887,105360.0,105350.0,0.233217]
[1748851040147,0.30024779,105360.0,105350.0,0.233217]
[1748851040357,0.30024779,105360.0,105350.0,0.23321701]
[1748851040565,0.29075662,105360.0,105350.0,0.22372521]
[1748851040755,0.29075662,105360.0,105350.0,0.23321719]
[1748851040953,0.30615662,105360.0,105350.0,0.21771719]
[1748851041992,0.29666536,105360.0,105350.0,0.21771694]
[1748851042303,0.29666536,105360.0,105350.0,0.21771732]
[1748851042513,0.29666536,105360.0,105350.0,0.2177174]
[1748851043451,0.29666536,105360.0,105350.0,0.21771592]
[1748851043900,0.29666536,105360.0,105350.0,0.21771584]
[1748851044117,0.29666536,105360.0,105350.0,0.2177167]
[1748851044322,0.29666536,105360.0,105350.0,0.00888928]
[1748851044532,0.29666536,105360.0,105350.0,0.01838144]
[1748851044715,0.29666536,105360.0,105350.0,0.02787351]
[1748851044929,0.29666536,105360.0,105350.0,0.02787398]
[1748851045150,0.29666536,105360.0,105350.0,0.21771735]
[1748851045351,0.29666536,105360.0,105350.0,0.21771733]
[1748851045595,0.29666536,105360.0,105350.0,0.00888973]
[1748851046445,0.29666536,105360.0,105350.0,0.00949216]
[1748851046692,0.29666536,105360.0,105350.0,0.01838201]
[1748851047127,0.29666536,105360.0,105350.0,0.01838217]
[1748851047795,0.29666536,105360.0,105350.0,0.01838218]
[1748851048005,0.29666536,105360.0,105350.0,0.00889013]
[1748851048863,0.29666536,105360.0,105350.0,0.0088901]
[1748851049066,0.29666536,105360.0,105350.0,0.0088903]
[1748851049278,0.00949189,105350.0,105340.0,0.24646834]
[1748851049522,0.00949189,105350.0,105340.0,0.25535873]
[1748851049737,0.01186915,105350.0,105340.0,0.25535873]
[1748851050449,0.02136113,105350.0,105340.0,0.24646834]
[1748851050646,0.02136086,105350.0,105340.0,0.2553592]
[1748851050863,0.03085284,105350.0,105340.0,0.26186834]
[1748851051060,0.03085284,105350.0,105340.0,0.27076031]
[1748851052236,0.04034446,105350.0,105340.0,0.27076074]
[1748851052638,0.04034446,105350.0,105340.0,0.27076077]
[1748851053257,0.04983599,105350.0,105340.0,0.27076077]
[1748851053477,0.04034401,105350.0,105340.0,0.27076088]
[1748851053685,0.04034401,105350.0,105340.0,0.27076099]
[1748851053828,0.04034401,105350.0,105340.0,0.26186839]
[1748851054044,0.04034401,105350.0,105340.0,0.27076098]
[1748851054854,0.04983599,105350.0,105340.0,0.27076111]
[1748851055294,0.04983599,105350.0,105340.0,0.2707611]
[1748851055716,0.03085212,105350.0,105340.0,0.2707611]
[1748851055906,0.02847486,105350.0,105340.0,0.2707611]
[1748851056066,0.03796675,105350.0,105340.0,0.2707611]
[1748851056265,0.03796675,105350.0,105340.0,0.27076083]
[1748851056568,0.03796675,105350.0,105340.0,0.26186839]
[1748851056773,0.02847486,105350.0,105340.0,0.27076091]
[1748851056980,0.02847486,105350.0,105340.0,0.270761]
[1748851057192,0.03796675,105350.0,105340.0,0.27076095]
[1748851057408,0.02847486,105350.0,105340.0,0.27076095]
[1748851057826,0.03796666,105350.0,105340.0,0.27076095]
[1748851057995,0.03796666,105350.0,105340.0,0.26186834]
[1748851058257,0.03796666,105350.0,105340.0,0.27076104]
[1748851058880,0.03796666,105350.0,105340.0,0.27076116]
[1748851059739,0.03796666,105350.0,105340.0,0.26186834]
[1748851059957,0.03796666,105350.0,105340.0,0.27076133]
[1748851061015,0.02847486,105350.0,105340.0,0.27076133]
[1748851061236,0.02847486,105350.0,105340.0,0.27076127]
[1748851061459,0.02847486,105350.0,105340.0,0.26772407]
[1748851061686,0.02847486,105350.0,105340.0,0.27076136]
[1748851061944,0.02847486,105350.0,105340.0,0.26186833]
[1748851062157,0.02847486,105350.0,105340.0,0.27076189]
[1748851062373,0.02847486,105350.0,105340.0,0.2707619]
[1748851062574,0.02847486,105350.0,105340.0,0.2707618]
[1748851062771,0.02847486,105350.0,105340.0,0.27076171]
[1748851063657,0.02847486,105350.0,105340.0,0.27076178]
[1748851063855,0.02847486,105350.0,105340.0,0.26186833]
[1748851064069,0.02847486,105350.0,105340.0,0.27076209]
[1748851064265,0.02847486,105350.0,105340.0,0.26186833]
[1748851064472,0.02847486,105350.0,105340.0,0.27076197]
[1748851064869,0.02847486,105350.0,105340.0,0.27076204]
[1748851065248,0.02847486,105350.0,105340.0,0.27076203]
[1748851066717,0.02847486,105350.0,105340.0,0.27076266]
[1748851067281,0.01898315,105350.0,105340.0,0.27076266]
[1748851067702,0.15140981,105370.0,105360.0,0.20880725]
[1748851067880,0.15144665,105380.0,105370.0,0.22468734]
[1748851068075,0.48402007,105380.0,105370.0,0.24366698]
[1748851068304,0.48402007,105380.0,105370.0,0.23417725]
[1748851068305,0.42772568,105380.0,105370.0,0.23417725]
[1748851069033,0.42772568,105380.0,105370.0,0.2342257]
[1748851069034,0.43072568,105380.0,105370.0,0.2342257]
[1748851069507,0.43072568,105380.0,105370.0,0.24371543]
[1748851069709,0.43372568,105380.0,105370.0,0.24371543]
[1748851070341,0.43372568,105380.0,105370.0,0.2342257]
[1748851072139,0.04395685,105380.0,105370.0,0.2342257]
[1748851072342,0.42419685,105380.0,105370.0,0.2342257]
[1748851073167,0.13331685,105380.0,105370.0,0.24371543]
[1748851073420,0.13331685,105380.0,105370.0,0.25921543]
[1748851073421,0.10484865,105380.0,105370.0,0.25921543]
[1748851073883,0.01548865,105380.0,105370.0,0.25921543]
[1748851074355,0.03146649,105380.0,105370.0,0.25921543]
[1748851074589,0.0314664,105380.0,105370.0,0.25921543]
[1748851074820,0.0324664,105380.0,105370.0,0.25921543]
[1748851075301,0.0294664,105380.0,105370.0,0.25921543]
[1748851075782,0.02097748,105380.0,105370.0,0.25921543]
[1748851075983,0.02097748,105380.0,105370.0,0.27841045]
[1748851078016,0.0304664,105380.0,105370.0,0.27841045]
[1748851078888,0.04233267,105380.0,105370.0,0.27841045]
[1748851079306,0.002,105380.0,105370.0,0.37426475]
[1748851079529,0.002,105380.0,105370.0,0.3773011]
[1748851081398,0.002,105380.0,105370.0,0.37426475]
[1748851081815,0.002,105380.0,105370.0,0.3773011]
[1748851082043,0.002,105380.0,105370.0,0.37426475]
[1748851082250,0.02335501,105380.0,105370.0,0.25921543]
[1748851082455,0.02335501,105380.0,105370.0,0.24371543]
[1748851082883,0.03284429,105380.0,105370.0,0.24371543]
[1748851083548,0.02335501,105380.0,105370.0,0.24371543]
[1748851083749,0.0328442,105380.0,105370.0,0.24371543]
[1748851084208,0.02335501,105380.0,105370.0,0.24371543]
[1748851084418,0.0328442,105380.0,105370.0,0.24371543]
[1748851084623,0.02335501,105380.0,105370.0,0.24371543]
[1748851084862,0.03284411,105380.0,105370.0,0.24371543]
[1748851085493,0.02335501,105380.0,105370.0,0.24371543]
[1748851086139,0.02097775,105380.0,105370.0,0.24371543]
[1748851086354,0.02097775,105380.0,105370.0,0.25951543]
[1748851087242,0.01148874,105380.0,105370.0,0.25951543]
[1748851087449,0.02097775,105380.0,105370.0,0.25951543]
[1748851087667,0.002,105380.0,105370.0,0.25951543]
[1748851087845,0.01148865,105380.0,105370.0,0.25951543]
[1748851088203,0.02097748,105380.0,105370.0,0.25951543]
[1748851088409,0.02097739,105380.0,105370.0,0.25951543]
[1748851088716,0.02097739,105380.0,105370.0,0.26255178]
[1748851089737,0.02097748,105380.0,105370.0,0.26255178]
[1748851090462,0.02097739,105380.0,105370.0,0.26255178]
[1748851092365,0.01148865,105380.0,105370.0,0.26255178]
[1748851092546,0.02097748,105380.0,105370.0,0.26255178]
[1748851095032,0.01148865,105380.0,105370.0,0.26255178]
[1748851095704,0.02097748,105380.0,105370.0,0.26255178]
[1748851096986,0.01148865,105380.0,105370.0,0.26255178]
[1748851097242,0.02097748,105380.0,105370.0,0.26255178]
[1748851097656,0.02097739,105380.0,105370.0,0.26255178]
[1748851098721,0.01148865,105380.0,105370.0,0.26255178]
[1748851100304,0.02097748,105380.0,105370.0,0.26255178]
[1748851100465,0.01148865,105380.0,105370.0,0.26255178]
[1748851101081,0.02335474,105380.0,105370.0,0.24675178]
[1748851101280,0.02097748,105380.0,105370.0,0.24675178]
[1748851101524,0.01148865,105380.0,105370.0,0.24675178]
[1748851102508,0.01148865,105380.0,105370.0,0.26315178]
[1748851103868,0.002,105380.0,105370.0,0.26315182]
[1748851104302,0.002,105380.0,105370.0,0.35900612]
[1748851105986,0.01148883,105380.0,105370.0,0.35900612]
[1748851106190,0.01148874,105380.0,105370.0,0.35900612]
[1748851106958,0.013866,105380.0,105370.0,0.24675182]
[1748851107197,0.02097757,105380.0,105370.0,0.24675182]
[1748851107610,0.03046658,105380.0,105370.0,0.24675182]
[1748851108018,0.03284384,105380.0,105370.0,0.24675182]
[1748851108339,0.03284384,105380.0,105370.0,0.24675184]
[1748851108916,0.04233294,105380.0,105370.0,0.24675184]
[1748851109121,0.02335483,105380.0,105370.0,0.24675184]
[1748851109316,0.03284384,105380.0,105370.0,0.24675184]
[1748851110186,0.02335483,105380.0,105370.0,0.24675184]
[1748851110392,0.03046658,105380.0,105370.0,0.24675184]
[1748851110596,0.03046658,105380.0,105370.0,0.26265184]
[1748851112619,0.03046658,105380.0,105370.0,0.25961543]